bitfinex/quotes_ETHUSD_20250806
["timestamp","ask_amount","ask_price","bid_price","bid_amount"]
[1754490789731,4.68390162,3602.2,3601.8,0.6385]
[1754490790070,0.25690162,3602.1,3601.9,1.2424]
[1754490790272,4.427,3602.2,3601.9,2.9155125]
[1754490790273,0.25690162,3602.0,3601.9,2.9155125]
[1754490790439,0.25690162,3602.1,3602.0,2.77623542]
[1754490790644,4.68290162,3602.1,3602.0,2.77623542]
[1754490790848,4.68290162,3602.1,3602.0,3.24093542]
[1754490791056,0.25690162,3602.1,3602.0,3.85658654]
[1754490791256,0.25690162,3602.3,3602.2,2.77608128]
[1754490791454,0.25690162,3602.3,3602.2,3.87921298]
[1754490791774,6.673,3602.7,3602.5,2.7758501]
[1754490791775,0.25690162,3602.6,3602.5,2.7758501]
[1754490791970,4.68090162,3602.6,3602.5,2.7758501]
[1754490792264,4.68090162,3602.6,3602.5,3.46942868]
[1754490792764,4.68090162,3602.6,3602.5,4.57262868]
[1754490792970,4.424,3602.6,3602.5,4.57262868]
[1754490793936,0.001,3603.2,3602.5,1.79677858]
[1754490794132,4.67949609,3603.1,3602.6,1.1032]
[1754490794346,0.25749609,3603.0,3602.8,2.77555993]
[1754490794546,0.25749609,3603.1,3603.0,0.1384]
[1754490794746,4.67749609,3603.1,3602.9,0.1384]
[1754490794965,0.25749609,3603.0,3602.9,0.1384]
[1754490795475,0.25749609,3603.1,3603.0,2.77546489]
[1754490795682,4.418,3603.1,3603.0,3.19515242]
[1754490795972,4.418,3603.1,3603.0,4.29835242]
[1754490796574,0.001,3603.2,3603.1,2.77538786]
[1754490797076,4.418,3603.2,3603.0,0.41968753]
[1754490797275,4.418,3603.2,3602.8,2.77561896]
[1754490797570,0.02772556,3603.1,3602.7,2.95535021]
[1754490797784,4.418,3603.2,3602.8,2.77558804]
[1754490798379,4.418,3603.2,3602.8,0.6385]
[1754490798681,4.418,3603.2,3602.9,2.77553976]
[1754490799047,4.418,3603.2,3602.8,1.1032]
[1754490799243,4.418,3603.2,3602.8,3.87880889]
[1754490799447,4.418,3603.2,3602.5,4.83517858]
[1754490800086,4.418,3603.2,3602.8,2.77555447]
[1754490800288,4.418,3603.2,3602.5,4.83517858]
[1754490800461,0.001,3603.2,3603.1,2.77538786]
[1754490800779,4.411,3603.2,3602.7,1.1032]
[1754490801446,4.411,3603.2,3602.6,4.28]
[1754490801447,0.28574755,3603.1,3602.6,7.05570234]
[1754490801652,0.02772556,3603.1,3602.6,7.05570234]
[1754490801956,0.02772556,3603.1,3602.6,8.20317732]
[1754490802158,0.02772556,3603.1,3602.6,4.28]
[1754490802361,1.0563,3603.0,3602.6,4.28]
[1754490802682,4.411,3603.2,3602.6,4.28]
[1754490802985,0.25797993,3603.1,3602.6,4.28]
[1754490803486,0.02772556,3603.0,3602.6,4.28]
[1754490803787,1.08402556,3603.0,3602.6,4.28]
[1754490803982,1.0563,3603.0,3602.6,4.28]
[1754490804284,4.411,3603.2,3602.6,7.68207083]
[1754490804506,0.25796188,3603.1,3602.6,5.368]
[1754490804865,0.25796188,3603.1,3602.6,7.68205386]
[1754490805200,0.25796188,3603.1,3602.6,5.368]
[1754490805401,0.25796188,3603.1,3602.9,0.1384]
[1754490805613,0.02772556,3603.0,3602.9,0.1384]
[1754490805909,0.62472556,3603.0,3602.9,0.1384]
[1754490806049,4.411,3603.2,3602.9,0.1384]
[1754490806250,0.25783865,3603.1,3602.8,2.77561896]
[1754490806496,4.407,3603.1,3602.9,4.41863335]
[1754490806667,4.407,3603.1,3603.0,0.1384]
[1754490807452,4.403,3603.1,3603.0,0.1384]
[1754490807880,4.403,3603.1,3603.0,1.2264]
[1754490808093,4.403,3603.1,3603.0,4.40202163]
[1754490808584,0.001,3603.2,3603.1,2.77538786]
[1754490808992,0.001,3603.2,3603.1,3.40168786]
[1754490809186,0.001,3603.2,3603.1,3.86338786]
[1754490809680,0.001,3603.2,3603.1,4.41338786]
[1754490809985,0.001,3603.2,3603.1,5.64189303]
[1754490810148,0.001,3603.2,3603.1,5.61413916]
[1754490810667,0.001,3603.2,3603.1,5.75253916]
[1754490811999,0.001,3603.5,3603.4,2.77515679]
[1754490812155,0.001,3603.5,3603.4,7.74990835]
[1754490812351,1e-08,3603.9,3603.8,3.32484877]
[1754490812589,1e-08,3603.9,3603.8,10.88799725]
[1754490812799,1e-08,3603.9,3603.8,11.94824877]
[1754490813700,1e-08,3603.9,3603.8,11.94724877]
[1754490815120,1e-08,3603.9,3603.8,7.55124877]
[1754490815273,1e-08,3603.9,3603.8,12.16637509]
[1754490815468,1e-08,3603.9,3603.8,13.25437509]
[1754490816918,1e-08,3603.9,3603.8,12.16637509]
[1754490817414,1e-08,3603.9,3603.8,13.25437509]
[1754490817724,1e-08,3603.9,3603.8,12.16637509]
[1754490817919,1e-08,3603.9,3603.8,12.79267509]
[1754490818209,1e-08,3603.9,3603.8,7.77337509]
[1754490818398,1e-08,3603.9,3603.8,12.16337509]
[1754490818986,1e-08,3603.9,3603.8,16.44337509]
[1754490819912,1e-08,3603.9,3603.8,7.77337509]
[1754490820238,1e-08,3603.9,3603.8,12.15737509]
[1754490820523,1e-08,3603.9,3603.8,9.15737509]
[1754490822288,1e-08,3603.9,3603.8,10.24537509]
[1754490822923,1e-08,3603.9,3603.8,9.78367509]
[1754490823125,1e-08,3603.9,3603.8,9.15737509]
[1754490823492,1e-08,3603.9,3603.8,10.24537509]
[1754490824727,1e-08,3603.9,3603.8,9.15737509]
[1754490825129,1e-08,3603.9,3603.8,4.22337509]
[1754490825329,0.59700001,3603.9,3603.8,4.22337509]
[1754490825533,1e-08,3603.9,3603.8,4.77337509]
[1754490825710,0.001,3604.3,3604.2,3.32454081]
[1754490825913,0.001,3604.3,3604.2,4.0728571]
[1754490826234,0.001,3604.3,3604.2,5.1608571]
[1754490827037,0.001,3604.3,3604.2,4.0728571]
[1754490827212,0.001,3604.3,3604.2,3.5228571]
[1754490827406,0.001,3604.3,3604.2,4.0728571]
[1754490828007,0.001,3604.3,3604.2,4.6991571]
[1754490828209,0.001,3604.3,3604.2,5.1608571]
[1754490828410,0.001,3604.3,3604.2,4.0728571]
[1754490828911,0.001,3604.3,3604.2,5.1608571]
[1754490829630,0.001,3604.3,3604.2,5.1886025]
[1754490829839,0.001,3604.3,3604.2,5.1608571]
[1754490830021,0.001,3604.3,3604.2,4.0728571]
[1754490831420,0.001,3604.3,3604.2,4.6759571]
[1754490832061,0.001,3604.3,3604.2,5.1054571]
[1754490832267,0.04,3604.9,3604.8,3.324079]
[1754490832410,0.04,3604.9,3604.8,8.3426438]
[1754490832711,0.04,3604.9,3604.8,9.48590301]
[1754490833853,0.001,3605.4,3605.3,3.32369428]
[1754490834065,0.001,3605.4,3605.3,10.73243122]
[1754490834359,0.001,3605.4,3605.3,11.73729428]
[1754490834660,0.001,3605.4,3605.3,13.18840136]
[1754490834868,0.001,3605.4,3605.3,13.32680136]
[1754490835152,0.001,3605.4,3605.3,12.29420136]
[1754490837512,0.001,3605.4,3605.3,13.32680136]
[1754490837715,0.04,3605.9,3605.8,2.77330966]
[1754490837916,0.04,3605.9,3605.8,7.70798]
[1754490838234,0.04,3605.9,3605.8,7.84638]
[1754490838813,0.6376,3605.9,3605.8,7.84638]
[1754490839017,1.0695,3605.9,3605.8,2.91170966]
[1754490839463,0.6376,3605.9,3605.8,2.91170966]
[1754490839644,0.04,3605.9,3605.8,3.46170966]
[1754490840281,0.6376,3605.9,3605.8,3.46170966]
[1754490840563,0.04,3605.9,3605.8,3.46170966]
[1754490840762,1.0695,3605.9,3605.8,2.91170966]
[1754490841260,0.04,3605.9,3605.8,3.91822]
[1754490841475,0.6376,3605.9,3605.8,2.91170966]
[1754490841669,1.0695,3605.9,3605.8,0.1384]
[1754490842348,1.0695,3605.9,3605.8,2.91170966]
[1754490842519,1.0695,3605.9,3605.8,0.1384]
[1754490844219,0.001,3606.7,3605.9,0.55]
[1754490844455,0.001,3606.7,3606.6,2.9110945]
[1754490844665,0.001,3606.7,3606.6,0.1384]
[1754490844870,0.001,3606.7,3606.6,2.9110945]
[1754490845156,1.0305,3606.7,3606.6,0.1384]
[1754490846517,1.98732741,3606.7,3606.6,0.1384]
[1754490846720,1.54453279,3606.7,3606.6,0.1384]
[1754490846925,1.0305,3606.7,3605.6,0.02773463]
[1754490847125,1.0295,3606.6,3606.3,0.1384]
[1754490847443,1.05722556,3606.6,3606.3,0.1384]
[1754490847620,1.0295,3606.5,3605.3,4.378]
[1754490847821,0.5976,3606.4,3606.0,0.1384]
[1754490848126,1.0295,3606.4,3606.0,0.1384]
[1754490848326,0.45962556,3606.3,3606.0,0.1384]
[1754490848521,1.05722556,3606.3,3604.8,4.98782401]
[1754490848722,1.1679,3606.2,3605.7,0.1384]
[1754490848952,1.0295,3606.1,3605.7,0.1384]
[1754490849560,0.1384,3605.8,3604.6,2.77418341]
[1754490849747,1.05722556,3605.7,3605.2,0.1384]
[1754490849946,1.0295,3605.6,3605.2,0.1384]
[1754490850151,4.0295,3605.6,3605.2,0.1384]
[1754490850458,1.4539557,3605.5,3605.0,0.1384]
[1754490850759,0.1384,3605.2,3604.6,0.1404]
[1754490850924,1.0295,3605.1,3604.6,0.1404]
[1754490851125,1.0295,3605.0,3604.6,0.1404]
[1754490851322,0.5976,3604.9,3604.6,0.002]
[1754490851557,0.5976,3605.8,3604.6,0.27963606]
[1754490851760,1.0295,3605.8,3604.9,2.77400205]
[1754490851961,0.5976,3605.8,3605.7,0.1384]
[1754490852164,1.0295,3605.8,3605.7,0.1384]
[1754490852862,6.663,3606.1,3605.7,0.1384]
[1754490853023,1.0295,3605.8,3605.7,0.1384]
[1754490853225,0.5976,3606.3,3605.3,0.02773694]
[1754490853547,0.5976,3606.3,3605.9,2.77317784]
[1754490853747,0.5976,3606.3,3606.2,0.1384]
[1754490853948,4.379,3606.7,3606.2,0.1384]
[1754490854174,0.25855501,3606.6,3606.4,0.1384]
[1754490854340,0.02772556,3606.5,3606.4,0.1384]
[1754490854544,1.31578057,3606.5,3606.4,0.1384]
[1754490854968,1.28805501,3606.5,3606.1,0.1384]
[1754490855173,1.0295,3606.4,3606.1,0.1384]
[1754490855651,0.5976,3606.3,3606.1,0.1384]
[1754490855963,1.0295,3606.3,3606.1,0.1384]
[1754490856156,0.5976,3606.5,3606.2,0.1384]
[1754490856480,0.001,3606.7,3606.4,0.1384]
[1754490856695,4.378,3606.6,3606.4,0.1384]
[1754490856846,0.25880536,3606.5,3606.4,0.1384]
[1754490857046,1.28830536,3606.5,3606.4,0.1384]
[1754490857747,4.31603092,3606.5,3606.4,0.1384]
[1754490858073,3.85640536,3606.5,3606.3,0.1384]
[1754490858270,1.28830536,3606.4,3606.1,0.1384]
[1754490858584,1.0295,3606.4,3606.1,0.1384]
[1754490858746,3.0,3606.5,3606.1,0.1384]
[1754490858948,0.85660194,3606.4,3606.1,0.1384]
[1754490859142,0.25900194,3606.4,3606.2,2.77300205]
[1754490859347,0.001,3606.7,3606.3,0.1384]
[1754490859587,0.001,3606.7,3606.5,0.1384]
[1754490860645,0.5986,3606.7,3606.5,0.1384]
[1754490860887,0.001,3606.7,3606.5,0.1384]
[1754490861265,0.609,3606.6,3606.5,0.1384]
[1754490861460,0.001,3606.7,3606.5,0.1384]
[1754490861678,0.001,3606.7,3606.6,2.7726945]
[1754490861906,0.001,3606.7,3606.6,3.91568274]
[1754490862103,0.001,3606.7,3606.6,4.37098274]
[1754490862784,0.001,3606.7,3606.6,4.39870968]
[1754490862977,0.001,3606.7,3606.6,4.37098274]
[1754490863209,0.001,3606.7,3606.6,3.34108274]
[1754490864712,0.61,3606.7,3606.5,2.91115347]
[1754490864906,0.609,3606.6,3606.5,0.1384]
[1754490865311,1.0759,3606.6,3606.5,0.1384]
[1754490865807,0.609,3606.6,3606.5,0.1384]
[1754490866010,1.0759,3606.6,3606.5,0.1384]
[1754490866387,1.0759,3606.6,3606.3,0.1384]
[1754490866588,0.609,3606.5,3606.3,0.1384]
[1754490867012,0.001,3606.7,3606.4,0.1384]
[1754490867190,0.001,3606.7,3606.5,2.77270668]
[1754490867507,0.001,3606.7,3606.6,2.9110945]
[1754490867706,0.001,3606.7,3606.6,4.3525945]
[1754490867916,0.001,3606.7,3606.6,3.94412144]
[1754490868069,0.001,3606.7,3606.6,4.51872144]
[1754490868272,0.001,3606.7,3606.6,4.4909945]
[1754490868512,0.001,3606.7,3606.6,5.71180706]
[1754490869107,0.001,3606.7,3606.6,4.68190706]
[1754490869437,0.001,3606.7,3606.6,2.9110945]
[1754490869598,0.001,3606.7,3606.6,0.1384]
[1754490869928,0.61,3606.7,3606.6,0.1384]
[1754490870232,0.001,3606.7,3606.6,0.1384]
[1754490870398,0.61,3606.7,3606.6,0.1384]
[1754490870598,1.0769,3606.7,3606.6,0.1384]
[1754490871200,1.0769,3606.7,3606.0,2.77312141]
[1754490871411,1.0759,3606.6,3605.9,2.77318264]
[1754490871609,0.4669,3606.6,3606.3,0.1384]
[1754490871810,1.0759,3606.5,3604.9,3.803868]
[1754490872014,0.02772556,3606.4,3605.1,3.15643373]
[1754490872214,0.02772556,3606.4,3605.9,0.1384]
[1754490872215,1.0759,3606.3,3605.9,0.1384]
[1754490872435,0.16612556,3606.4,3605.9,0.1384]
[1754490872741,1.0759,3606.2,3605.9,0.1384]
[1754490873036,1.0759,3606.1,3605.9,0.1384]
[1754490873537,1.0759,3606.0,3605.9,0.1384]
[1754490874205,4.376,3606.2,3605.9,0.1384]
[1754490874402,0.6053,3606.4,3605.9,0.1384]
[1754490874403,4.9813,3606.4,3605.9,0.1384]
[1754490874706,0.609,3606.0,3605.9,0.1384]
[1754490875437,1.10362556,3606.0,3605.5,0.002]
[1754490875639,0.49462556,3605.9,3605.6,0.1384]
[1754490875941,4.54112556,3605.8,3605.5,0.002]
[1754490876341,3.0,3605.7,3605.5,0.002]
[1754490876595,0.16612556,3605.6,3605.5,0.002]
[1754490876844,1.24202556,3605.6,3605.5,0.002]
[1754490877338,4.984,3605.6,3605.5,0.002]
[1754490878138,5.4509,3605.6,3605.5,0.002]
[1754490879520,4.984,3605.6,3605.5,0.002]
[1754490879729,0.609,3605.6,3605.5,0.002]
[1754490879913,0.609,3605.6,3605.5,0.1404]
[1754490879914,5.4519,3605.6,3605.5,0.1404]
[1754490880343,4.985,3605.6,3605.5,0.1404]
[1754490880645,4.376,3605.6,3605.5,0.1404]
[1754490880855,5.4519,3605.6,3605.5,0.1404]
[1754490881841,4.376,3605.6,3605.5,0.1404]
[1754490882207,0.7474,3606.0,3605.5,0.1404]
[1754490882408,3.28764265,3606.7,3605.5,0.1404]
[1754490882409,0.609,3606.3,3605.5,3.20529487]
[1754490882629,3.0,3606.1,3605.5,3.20529487]
[1754490882838,3.609,3606.1,3605.5,0.4318061]
[1754490883039,3.609,3606.1,3605.5,0.1404]
[1754490883241,3.609,3606.1,3605.5,0.002]
[1754490883451,4.376,3606.0,3605.9,0.1384]
[1754490883630,4.375,3606.0,3605.9,0.1384]
[1754490884158,4.375,3606.1,3606.0,2.77314678]
[1754490884365,4.375,3606.1,3605.9,0.1384]
[1754490884561,4.984,3606.1,3605.9,0.1384]
[1754490884736,4.375,3606.1,3605.9,0.1384]
[1754490885058,4.375,3606.1,3605.9,0.70691057]
[1754490885262,4.375,3606.1,3606.0,2.77315554]
[1754490885557,1.0769,3606.7,3606.1,2.77303739]
[1754490885762,4.375,3606.6,3606.5,0.1384]
[1754490886350,0.001,3606.7,3606.6,2.7726945]
[1754490886567,0.001,3606.7,3606.6,3.83032144]
[1754490886776,0.001,3606.7,3606.6,4.3525945]
[1754490886982,0.001,3606.7,3606.6,5.08174448]
[1754490888526,0.001,3606.7,3606.6,5.10947142]
[1754490889937,0.001,3606.7,3606.6,5.08174448]
[1754490892469,0.001,3606.7,3606.6,5.10947142]
[1754490893410,0.001,3606.7,3606.6,5.08174448]
[1754490893602,0.001,3606.7,3606.6,5.10947142]
[1754490893753,0.001,3606.7,3606.6,5.08174448]
[1754490894573,0.001,3606.7,3606.6,5.06144448]
[1754490895296,0.001,3606.7,3606.6,4.05184448]
[1754490896086,0.001,3606.7,3606.6,8.42484448]
[1754490896299,0.5939,3606.7,3606.6,4.05184448]
[1754490896501,1.0581,3606.7,3606.5,0.1384]
[1754490896716,0.001,3606.7,3606.6,2.7726945]
[1754490897079,0.001,3606.7,3606.5,2.91115224]
[1754490897322,1.0571,3606.6,3606.5,0.1384]
[1754490898399,0.001,3606.7,3606.5,2.91117138]
[1754490898802,0.5939,3606.7,3606.5,2.91117138]
[1754490899149,1.0571,3606.6,3606.5,0.1384]
[1754490899618,0.001,3606.7,3606.5,2.91117138]
[1754490900008,0.5939,3606.7,3606.5,0.1384]
[1754490900207,0.001,3606.7,3606.5,0.1384]
[1754490900411,1.0571,3606.6,3606.5,0.1384]
[1754490900613,1.59882317,3606.6,3605.1,0.002]
[1754490900788,4.372,3606.5,3605.1,0.002]
[1754490900992,0.02772556,3606.4,3605.1,0.002]
[1754490901189,1.0571,3606.3,3605.3,2.77367402]
[1754490901390,1.0571,3606.2,3605.3,2.77367402]
[1754490901616,1.0571,3606.1,3605.6,2.77341339]
[1754490901914,4.372,3606.3,3605.6,2.77343549]
[1754490902116,1.0571,3606.2,3605.2,1.1339]
[1754490902334,1.0571,3606.2,3605.3,0.02773694]
[1754490902624,0.5929,3606.2,3605.4,0.55]
[1754490902824,0.5929,3606.2,3605.7,2.77335752]
[1754490903029,0.5929,3606.2,3605.8,2.77330727]
[1754490903230,0.5939,3606.7,3606.0,2.77308664]
[1754490903433,1.0581,3606.7,3605.8,0.55488149]
[1754490903637,0.001,3606.7,3605.9,0.55]
[1754490903795,0.5939,3606.7,3606.3,2.77286269]
[1754490904130,0.5939,3606.7,3606.6,2.7726945]
[1754490904302,1.0581,3606.7,3606.3,2.77290859]
[1754490904507,1.0571,3606.6,3606.3,2.77290859]
[1754490904704,0.5929,3606.5,3606.3,2.77290859]
[1754490904908,1.0571,3606.4,3606.2,2.77298308]
[1754490905103,1.0571,3606.3,3606.2,2.77298308]
[1754490905308,0.5929,3606.3,3606.2,2.77298308]
[1754490905508,0.5929,3606.3,3605.6,0.55]
[1754490905729,0.5929,3606.3,3605.5,0.002]
[1754490905730,0.4642,3606.2,3605.5,0.002]
[1754490905931,0.4642,3606.2,3605.5,2.77549964]
[1754490906117,0.4642,3606.2,3605.5,0.002]
[1754490906317,0.5929,3606.1,3605.5,2.77553653]
[1754490906503,0.5929,3606.1,3605.5,0.002]
[1754490906703,0.5929,3606.1,3605.6,2.7734635]
[1754490906932,1.0571,3606.0,3605.6,2.77341091]
[1754490907105,1.0571,3606.0,3605.7,2.77337791]
[1754490907309,1.0571,3605.9,3605.5,2.77552448]
[1754490907513,0.5929,3605.8,3605.6,2.77339727]
[1754490908021,0.5929,3605.8,3605.6,2.77345695]
[1754490908332,0.5929,3605.8,3605.5,2.77551244]
[1754490908497,0.5929,3605.8,3605.6,2.77345892]
[1754490908829,4.372,3606.4,3605.5,0.55691915]
[1754490908830,0.5929,3606.1,3605.5,0.55691915]
[1754490909038,1.0571,3606.1,3605.6,2.77342871]
[1754490909204,4.372,3606.4,3605.6,2.77342871]
[1754490909405,1.0571,3606.0,3605.5,0.002]
[1754490909604,1.0571,3606.0,3605.7,2.77333338]
[1754490909806,0.5929,3606.0,3605.7,2.77337521]
[1754490910026,0.5929,3606.0,3605.6,3.0510048]
[1754490910240,1.0571,3605.9,3605.5,0.002]
[1754490910664,1.08482556,3605.8,3605.5,0.002]
[1754490910883,1.0571,3605.7,3605.5,0.002]
[1754490911009,1.0571,3605.7,3605.5,0.1404]
[1754490911204,1.0571,3605.6,3605.5,0.1404]
[1754490914280,0.5929,3605.6,3605.5,0.1404]
[1754490915028,1.0571,3605.6,3605.5,0.1404]
[1754490915422,1.08482556,3605.6,3605.5,0.002]
[1754490915623,1.1955,3605.6,3605.5,0.002]
[1754490917256,0.7313,3605.6,3605.5,0.002]
[1754490917424,0.5929,3605.6,3605.5,0.002]
[1754490917626,4.9629,3605.6,3605.5,0.002]
[1754490918025,5.4271,3605.6,3605.5,0.002]
[1754490918940,1.0571,3606.0,3605.5,0.002]
[1754490919135,4.37,3605.9,3605.6,2.77339739]
[1754490919372,4.37,3605.9,3605.6,0.55489572]
[1754490919527,4.9629,3605.9,3605.5,0.002]
[1754490919722,4.37,3605.9,3605.5,2.77549017]
[1754490919926,4.37,3605.9,3605.8,0.1384]
[1754490919927,4.9629,3605.9,3605.8,0.1384]
[1754490920129,4.37,3605.9,3605.8,2.91170966]
[1754490920323,0.001,3606.2,3606.1,2.77307894]
[1754490920522,0.001,3606.2,3606.1,3.32307894]
[1754490920735,0.001,3606.2,3606.1,7.48037894]
[1754490921671,0.001,3606.2,3606.1,6.46147894]
[1754490921819,0.001,3606.2,3606.1,7.02467894]
[1754490922023,0.001,3606.2,3606.1,5.93804103]
[1754490922219,0.001,3606.2,3606.1,4.92614103]
[1754490922447,0.001,3606.2,3606.1,4.37614103]
[1754490922823,0.5558,3606.2,3606.1,2.91147894]
[1754490923461,0.001,3606.2,3606.1,2.91147894]
[1754490924131,0.001,3606.2,3606.1,4.47337894]
[1754490924328,0.001,3606.2,3606.1,3.46147894]
[1754490924565,0.001,3606.2,3606.1,2.91147894]
[1754490924879,0.001,3606.2,3606.1,3.96482061]
[1754490925074,0.5558,3606.2,3606.1,0.1384]
[1754490925370,0.9926,3606.2,3606.1,0.1384]
[1754490925611,5.3616,3606.2,3606.1,0.1384]
[1754490925722,5.3616,3606.2,3605.6,2.77342801]
[1754490925927,0.5548,3606.1,3605.9,0.1384]
[1754490926128,0.9916,3606.1,3605.9,0.1384]
[1754490926354,0.9916,3606.0,3605.9,0.1384]
[1754490926778,0.9916,3606.0,3605.5,0.002]
[1754490926925,0.9916,3605.9,3605.7,0.1384]
[1754490927129,1.01932556,3605.9,3605.5,0.002]
[1754490927329,0.9916,3605.8,3605.5,0.1404]
[1754490927584,4.53612556,3606.2,3605.5,0.1404]
[1754490927585,0.02772556,3606.1,3605.5,0.1404]
[1754490927785,0.9916,3605.7,3605.5,0.1404]
[1754490928068,0.4368,3605.6,3605.5,0.1404]
[1754490928374,0.9916,3605.6,3605.5,0.1404]
[1754490928663,0.5548,3606.0,3605.5,2.91394042]
[1754490928865,0.9916,3605.9,3605.5,0.1404]
[1754490929024,0.9916,3605.9,3605.5,2.91390811]
[1754490929230,0.5548,3605.9,3605.6,2.77339921]
[1754490929447,0.5548,3605.8,3605.7,0.1384]
[1754490929764,0.9916,3605.8,3605.7,0.1384]
[1754490929961,0.5548,3605.8,3605.7,0.1384]
[1754490930140,0.9916,3605.8,3605.5,0.002]
[1754490930341,0.9916,3605.7,3605.6,0.1384]
[1754490930552,0.5548,3605.7,3605.6,0.1384]
[1754490930760,0.001,3606.2,3606.0,2.77315287]
[1754490930931,0.001,3606.2,3606.1,2.91147894]
[1754490931128,0.001,3606.2,3606.1,3.47467894]
[1754490931462,0.041,3606.9,3606.8,2.77254075]
[1754490931662,0.041,3606.9,3606.8,3.35026615]
[1754490931887,0.041,3606.9,3606.8,3.79896615]
[1754490932039,0.041,3606.9,3606.8,5.40726256]
[1754490932639,0.041,3606.9,3606.8,3.84536256]
[1754490933778,0.041,3606.9,3606.8,1.07282181]
[1754490933993,0.041,3606.9,3606.8,2.91094075]
[1754490934379,0.041,3606.9,3606.8,4.50056615]
[1754490934847,0.041,3606.9,3606.8,8.86756615]
[1754490935046,0.041,3606.9,3606.8,8.83984075]
[1754490935875,0.041,3606.9,3606.8,3.46094075]
[1754490936076,0.041,3606.9,3606.8,4.13528365]
[1754490936279,0.041,3606.9,3606.8,2.91094075]
[1754490938062,0.5958,3606.9,3606.8,0.1384]
[1754490938261,1.0326,3606.9,3606.8,0.1384]
[1754490939077,0.041,3606.9,3606.8,2.91094075]
[1754490939393,1.0326,3606.9,3606.8,0.1384]
[1754490939592,1.0326,3606.9,3606.8,2.91094075]
[1754490939769,0.5958,3606.9,3606.8,2.91094075]
[1754490939970,0.041,3606.9,3606.8,2.91094075]
[1754490941776,1e-08,3607.3,3607.2,3.32223331]
[1754490941975,1e-08,3607.3,3607.2,11.46381063]
[1754490942305,1e-08,3607.5,3607.4,5.77207961]
[1754490942612,1e-08,3607.5,3607.4,5.91047961]
[1754490942763,1e-08,3607.5,3607.4,8.4443864]
[1754490942962,0.001,3608.0,3607.8,0.55]
[1754490943205,0.001,3608.0,3607.8,10.68677227]
[1754490943359,1e-08,3608.0,3607.9,6.32169544]
[1754490943565,1e-08,3608.0,3607.9,9.41281799]
[1754490948367,1e-08,3608.0,3607.9,13.77581799]
[1754490949195,1e-08,3608.0,3607.9,8.86281799]
[1754490949709,1e-08,3608.0,3607.9,13.77581799]
[1754490950218,1e-08,3608.0,3607.9,9.41281799]
[1754490950385,1e-08,3608.0,3607.9,13.77581799]
[1754490950798,1e-08,3608.0,3607.9,9.41281799]
[1754490951105,1e-08,3608.0,3607.9,13.77581799]
[1754490951412,1e-08,3608.0,3607.9,18.05581799]
[1754490952983,1e-08,3608.0,3607.9,18.05481799]
[1754490955836,1e-08,3608.8,3608.7,3.32108099]
[1754490955976,1e-08,3608.8,3608.7,12.57130543]
[1754490956176,1e-08,3608.9,3608.8,3.32100421]
[1754490956376,1e-08,3608.9,3608.8,10.60100421]
[1754490957011,1e-08,3608.9,3608.8,14.96200421]
[1754490957012,0.57410001,3608.9,3608.8,14.96200421]
[1754490957218,1e-08,3608.9,3608.8,17.07335151]
[1754490957815,1.04740001,3608.9,3608.8,17.07335151]
[1754490959076,1.04740001,3608.9,3608.8,12.71235151]
[1754490959293,1.04740001,3608.9,3608.8,12.85075151]
[1754490959583,0.57410001,3608.9,3608.8,17.21075151]
[1754490959778,0.001,3609.1,3609.0,3.32085065]
[1754490959998,0.001,3609.1,3609.0,13.39974991]
[1754490960320,0.001,3609.1,3609.0,13.51044141]
[1754490960481,0.4743,3609.1,3609.0,9.15044141]
[1754490960676,0.4743,3609.1,3609.0,13.51044141]
[1754490960877,0.4733,3609.6,3609.5,3.32046682]
[1754490961183,0.4733,3609.6,3609.5,11.96046682]
[1754490961510,0.4733,3609.6,3609.5,12.09886682]
[1754490961816,1.0474,3609.6,3609.5,12.09886682]
[1754490962182,1.0474,3609.6,3609.5,11.54886682]
[1754490963902,1.0474,3609.6,3609.5,7.26886682]
[1754490964221,0.4733,3609.6,3609.5,7.26886682]
[1754490964422,0.4733,3609.6,3609.5,8.27280844]
[1754490964789,1.0474,3609.6,3609.5,8.27280844]
[1754490965520,1.0474,3609.6,3609.5,2.90886682]
[1754490965725,1.0474,3609.6,3609.5,7.26786682]
[1754490966037,1.0474,3609.6,3609.5,2.90886682]
[1754490966347,1.0474,3609.6,3609.5,0.1384]
[1754490966527,1.0474,3609.6,3609.5,2.90886682]
[1754490967425,1.0474,3609.6,3609.5,0.1384]
[1754490967628,1.0474,3609.6,3609.5,2.90886682]
[1754490969669,1.0474,3609.6,3609.5,0.1384]
[1754490970074,1.0474,3609.6,3609.1,4.358]
[1754490970278,0.04,3609.9,3609.3,0.1384]
[1754490970279,0.1384,3609.8,3609.3,0.1384]
[1754490970481,1.07512556,3609.5,3607.8,6.657]
[1754490970679,1.1858,3609.4,3608.9,0.1384]
[1754490970898,0.1384,3609.2,3608.1,4.358]
[1754490971175,1.0474,3609.1,3607.5,0.002]
[1754490971394,0.1384,3608.7,3608.2,0.1384]
[1754490971707,1.0474,3608.6,3608.3,2.77133858]
[1754490971838,0.4733,3608.6,3608.3,0.27713386]
[1754490972164,7.358,3609.7,3608.5,0.1384]
[1754490972165,0.1384,3609.3,3608.5,0.1384]
[1754490972537,0.1384,3609.3,3608.8,0.1384]
[1754490972771,0.4733,3609.2,3609.1,0.1384]
[1754490972975,1.0474,3609.2,3609.1,0.1384]
[1754490973193,1.0474,3609.2,3609.1,2.90917387]
[1754490973350,1.0474,3609.2,3609.1,0.1384]
[1754490974439,1.0474,3609.2,3608.0,4.358]
[1754490974650,1.0474,3609.1,3608.7,0.1384]